bitfinex-derivatives/quotes_ETHF0:USTF0_20250212
["timestamp","ask_amount","ask_price","bid_price","bid_amount"]
[1739377631112,0.77366,2585.3,2585.0,0.77372]
[1739377631312,0.77364,2585.3,2585.0,0.77372]
[1739377631912,3.2078,2585.4,2584.9,3.2078]
[1739377632112,0.77366,2585.3,2584.9,3.2078]
[1739377632505,3.2078,2585.4,2584.9,3.2078]
[1739377632705,3.2078,2585.1,2584.3,3.2078]
[1739377633013,3.2078,2585.1,2583.9,29.768409]
[1739377633014,3.2078,2584.8,2584.0,1.2068]
[1739377633218,0.77382,2584.7,2584.3,0.77392]
[1739377633404,3.2078,2584.8,2584.0,1.2068]
[1739377633607,3.21360338,2584.8,2584.4,3.2078]
[1739377634108,0.00580338,2584.8,2584.7,3.98162]
[1739377634315,1.92,2585.6,2585.5,0.77358]
[1739377634509,0.7735,2585.8,2585.5,3.2078]
[1739377634707,1.92,2586.0,2585.6,0.77354]
[1739377634907,2.2263233,2586.0,2585.1,3.2078]
[1739377635115,0.77359,2585.5,2585.2,3.2078]
[1739377635308,0.77363,2585.4,2585.1,0.77368]
[1739377635509,0.00580338,2585.6,2585.1,0.00580338]
[1739377635714,9.2379321,2585.5,2585.1,0.00580338]
[1739377635904,0.77366,2585.3,2585.1,0.00580338]
[1739377636108,9.2379321,2585.5,2585.1,0.00580338]
[1739377636412,0.77367,2585.2,2585.1,0.00580338]
[1739377636809,9.8118321,2585.5,2585.1,0.00580338]
[1739377637111,3.2078,2585.5,2585.4,0.77361]
[1739377637317,0.00580338,2585.6,2585.5,0.77358]
[1739377637509,0.00580338,2585.6,2585.5,3.98138]
[1739377637709,0.00580338,2585.6,2585.5,0.77358]
[1739377637905,0.00580338,2585.6,2585.5,3.98138]
[1739377640817,0.00580338,2585.6,2585.3,0.5696]
[1739377641117,0.7736,2585.5,2585.4,0.77361]
[1739377641421,0.00580338,2585.6,2585.4,0.77361]
[1739377641620,0.77936338,2585.6,2585.4,0.77361]
[1739377641819,0.00580338,2585.6,2585.5,0.77358]
[1739377643017,0.00580338,2585.6,2585.5,3.98138]
[1739377643215,0.00580338,2585.6,2585.5,9.98138]
[1739377644426,0.00580338,2585.6,2585.5,3.98138]
[1739377645124,0.00580338,2585.6,2585.5,0.77358]
[1739377645915,0.00580338,2585.6,2585.5,3.98138]
[1739377646525,0.00580338,2585.6,2585.5,0.77358]
[1739377647023,0.00580338,2585.6,2585.5,3.98138]
[1739377647927,0.77361,2585.5,2585.4,0.77359]
[1739377648431,0.77936338,2585.6,2585.5,0.77358]
[1739377649122,0.77936338,2585.6,2585.5,3.98138]
[1739377649123,0.00580338,2585.6,2585.5,3.98138]
[1739377654328,0.5613,2586.4,2586.0,1.93357]
[1739377654519,0.5613,2586.4,2585.8,5.14151]
[1739377654719,0.5613,2586.4,2585.8,3.2078]
[1739377654920,1.33465,2586.4,2586.3,0.77334]
[1739377655431,1.33465,2586.4,2585.9,1.93365]
[1739377655432,0.5613,2586.4,2585.9,1.93365]
[1739377655725,9.8125321,2586.4,2585.7,1.93376]
[1739377656121,9.8125321,2586.4,2586.0,0.7734]
[1739377656122,0.77343,2586.1,2586.0,0.7734]
[1739377656330,0.77346,2586.0,2585.9,0.77344]
[1739377656624,3.2078,2586.1,2585.5,3.2078]
[1739377656826,5.14132,2586.1,2585.5,3.2078]
[1739377657129,0.5627,2586.2,2585.6,1.93386]
[1739377657531,1.33609,2586.2,2586.1,0.7734]
[1739377657828,0.5627,2586.2,2586.1,0.7734]
[1739377658022,2.4817,2586.2,2586.1,0.7734]
[1739377658224,0.5627,2586.2,2586.1,0.7734]
[1739377658425,0.5627,2586.2,2585.8,5.14153]
[1739377658426,4.54243,2586.4,2586.3,0.77334]
[1739377658624,4.54241,2586.4,2586.3,0.77334]
[1739377659135,0.5613,2586.4,2586.3,0.77334]
[1739377659321,7.3179321,2587.6,2586.2,3.2078]
[1739377659524,0.77305,2587.3,2587.1,0.77309]
[1739377659723,3.0465,2587.4,2586.7,3.2078]
[1739377659925,3.2078,2587.2,2586.7,0.7732]
[1739377660135,0.77322,2586.7,2586.4,3.2078]
[1739377660431,3.2078,2587.2,2586.4,3.2078]
[1739377660628,0.77899338,2586.8,2586.6,0.77323]
[1739377660933,0.77327,2586.6,2586.4,3.14160591]
[1739377661324,3.2078,2586.6,2585.6,0.57]
[1739377661624,5.1268,2586.5,2585.6,4.6801321]
[1739377661826,5.1268,2586.5,2585.8,1.93373]
[1739377662022,5.9001,2586.5,2585.8,1.93373]
[1739377662227,5.1268,2586.5,2586.1,0.77338]
[1739377662429,5.1268,2586.5,2585.9,0.77344]
[1739377662629,0.7734,2586.1,2586.0,0.00580338]
[1739377663036,1.3318,2586.1,2586.0,0.00580338]
[1739377663532,10.6685321,2586.1,2585.0,3.2078]
[1739377663730,3.2078,2585.5,2585.0,3.98152]
[1739377663936,0.77368,2585.2,2584.8,0.77378]
[1739377664134,3.9815,2585.1,2584.5,1.1937]
[1739377664528,0.77373,2585.0,2584.6,0.77383]
[1739377665029,3.21360338,2585.1,2584.6,0.77383]
[1739377665329,0.77374,2585.0,2584.6,0.77383]
[1739377665531,1.919,2585.0,2584.7,0.77379]
[1739377666122,3.21360338,2585.1,2584.5,0.00580338]
[1739377666333,3.21360338,2585.1,2584.7,4.1101321]
[1739377666533,3.21360338,2585.1,2584.9,0.77373]
[1739377666729,0.00580338,2585.1,2585.0,0.77373]
[1739377667633,0.6098,2585.7,2585.6,0.77355]
[1739377668933,0.00580338,2585.9,2585.5,3.2078]
[1739377669138,0.00580338,2585.9,2585.8,0.77349]
[1739377671228,0.00580338,2585.9,2585.5,3.2078]
[1739377671430,0.77927338,2585.9,2585.7,0.77351]
[1739377671633,0.77349,2585.8,2585.7,0.77351]
[1739377671832,0.77349,2585.8,2585.5,3.2078]
[1739377672035,0.77349,2585.8,2585.6,0.77353]
[1739377672233,0.77349,2585.8,2585.7,0.77352]
[1739377672437,0.00580338,2585.9,2585.7,0.77352]
[1739377672630,0.00580338,2585.9,2585.5,3.2078]
[1739377672837,0.00580338,2585.9,2585.8,0.77349]
[1739377673339,0.77926338,2585.9,2585.7,0.7735]
[1739377673542,0.77928338,2585.9,2585.5,3.2078]
[1739377673737,0.00580338,2585.9,2585.5,3.2078]
[1739377673932,0.00580338,2585.9,2585.8,0.77349]
[1739377676038,0.77331,2586.4,2585.8,3.2078]
[1739377676236,0.77335,2586.3,2586.2,0.77335]
[1739377676436,0.77334,2586.3,2585.8,3.2078]
[1739377676641,0.77334,2586.3,2586.2,0.77335]
[1739377676841,0.77332,2586.4,2586.3,0.77332]
[1739377677044,3.2078,2586.6,2585.8,3.2078]
[1739377677343,0.77337,2586.2,2586.1,0.77917338]
[1739377677539,0.77336,2586.3,2586.2,0.77336]
[1739377677736,0.77337,2586.2,2586.1,0.00580338]
[1739377678237,3.2078,2586.3,2586.1,0.00580338]
[1739377678443,3.2078,2586.3,2586.2,0.77337]
[1739377678444,3.98115,2586.3,2586.2,0.77337]
[1739377678839,3.2078,2586.3,2586.2,0.77337]
[1739377679241,3.21360338,2586.6,2586.5,0.77328]
[1739377681045,0.00580338,2586.6,2586.5,0.77328]
[1739377681445,0.00580338,2586.6,2586.5,4.8834121]
[1739377681659,3.2078,2587.2,2587.1,0.7731]
[1739377682145,0.5675,2587.4,2586.8,3.2078]
[1739377682352,1.918,2587.9,2587.8,0.77289]
[1739377682548,1.918,2588.3,2587.5,3.2078]
[1739377682753,0.77273,2588.4,2588.1,0.77279]
[1739377683047,0.00580338,2588.2,2588.1,0.77279]
[1739377684150,0.00580338,2588.2,2588.1,1.37489]
[1739377684554,0.77261,2588.8,2588.4,0.7727]
[1739377685052,0.77274,2588.3,2588.0,4.58872]
[1739377685258,0.77279,2588.2,2587.8,0.77288]
[1739377685450,0.77281,2588.1,2587.7,5.8987]
[1739377685650,0.77285,2588.0,2587.7,3.2078]
[1739377685955,0.77285,2588.0,2587.6,3.25714338]
[1739377685956,5.13160338,2588.3,2587.6,0.00580338]
[1739377686344,0.00580338,2588.3,2587.6,0.00580338]
[1739377686752,0.77282,2588.1,2587.8,3.2078]
[1739377686948,0.77286,2587.9,2587.6,0.77874338]
[1739377687155,3.2078,2588.2,2587.6,0.77874338]
[1739377687449,0.77289,2587.8,2587.6,0.00580338]
[1739377687660,3.2078,2587.9,2587.6,0.00580338]
[1739377687847,3.2078,2588.2,2587.6,0.00580338]
[1739377688157,0.77292,2587.7,2587.6,0.00580338]
[1739377688361,3.2078,2587.9,2587.6,0.00580338]
[1739377688550,0.7729,2587.8,2587.6,0.00580338]
[1739377688852,3.2078,2588.1,2587.6,0.00580338]
[1739377689058,0.7729,2587.8,2587.6,0.00580338]
[1739377689257,3.2078,2588.1,2587.6,0.00580338]
[1739377689554,0.77292,2587.7,2587.6,0.00580338]
[1739377690154,7.111,2587.7,2586.5,4.7007321]
[1739377690354,3.2078,2587.1,2586.4,5.1248]
[1739377690551,3.2078,2587.1,2586.7,0.77321]
[1739377690750,3.2078,2587.1,2586.4,5.1248]
[1739377690959,0.5683,2587.0,2586.4,5.1248]
[1739377691254,0.77317,2586.9,2586.5,0.77326]
[1739377691456,0.77317,2586.9,2586.4,5.13060338]
[1739377691654,1.17540338,2587.0,2586.4,5.13060338]
[1739377691847,3.2078,2586.8,2586.4,0.00580338]
[1739377692048,1.17540338,2587.0,2586.4,0.00580338]
[1739377692249,1.17540338,2587.0,2586.8,0.77317]
[1739377692455,0.57410338,2587.0,2586.9,0.77316]
[1739377692655,0.00580338,2587.0,2586.9,0.77316]
[1739377695153,0.00580338,2587.0,2586.8,0.77317]
[1739377695456,0.77895338,2587.0,2586.8,0.77317]
[1739377695659,0.00580338,2587.0,2586.5,5.1248]
[1739377695851,0.00580338,2587.0,2586.9,0.77316]
[1739377696046,0.00580338,2587.0,2586.5,5.1248]
[1739377696457,0.00580338,2587.0,2586.9,0.77316]
[1739377697560,3.38e-06,2587.0,2586.9,6.77316]
[1739377697853,3.38e-06,2587.0,2586.9,11.71439574]
[1739377698056,1.1722,2588.3,2586.9,11.50793574]
[1739377698357,3.2078,2588.9,2588.8,0.77259]
[1739377698553,3.2078,2588.9,2588.3,1.93186]
[1739377698554,0.64708912,2589.1,2589.0,0.77253]
[1739377698758,0.06048912,2589.1,2589.0,0.77253]
[1739377699357,0.59140338,2589.3,2588.8,3.21360338]
[1739377699558,0.00580338,2589.3,2589.2,0.77247]
[1739377701355,0.00580338,2589.3,2589.2,3.98027]
[1739377702362,3.38e-06,2589.3,2589.2,11.89627]
[1739377702959,3.38e-06,2589.3,2589.2,12.47277]
[1739377703861,3.38e-06,2589.3,2589.2,17.43813108]
[1739377704059,3.2078,2590.6,2589.2,16.66566108]
[1739377704260,0.5582,2591.1,2590.5,3.2078]
[1739377704454,0.5582,2591.1,2590.1,3.2078]
[1739377704455,3.766,2591.1,2590.1,3.2078]
[1739377704653,0.77198,2590.9,2590.5,0.77207]
[1739377704866,0.77201,2590.8,2590.1,1.916]
[1739377705168,3.766,2591.1,2590.5,3.2078]
[1739377705364,0.5582,2591.1,2591.0,0.77194]
[1739377705565,0.56190841,2591.1,2591.0,0.77194]
[1739377706668,0.56190841,2591.1,2590.5,5.13801]
[1739377706669,0.56190841,2591.1,2590.5,3.2078]
[1739377706961,1.33381841,2591.1,2590.8,0.77198]
[1739377707155,0.56190841,2591.1,2590.5,3.2078]
[1739377707359,0.00370841,2591.1,2591.0,0.77194]
[1739377707962,0.00370841,2591.1,2590.6,1.915]
[1739377708158,0.00370841,2591.1,2590.5,3.2078]
[1739377708362,0.77195,2591.0,2590.6,0.77203]
[1739377708561,0.77195,2591.0,2590.7,0.77202]
[1739377708764,3.21150841,2591.1,2590.5,3.2078]
[1739377708954,0.00370841,2591.1,2590.5,3.2078]
[1739377709157,0.00370841,2591.1,2591.0,0.77194]
[1739377715367,8.41e-06,2591.1,2591.0,0.77194]
[1739377717076,8.41e-06,2591.1,2591.0,6.77194]
[1739377717372,8.41e-06,2591.1,2591.0,11.84791587]
[1739377717566,8.41e-06,2591.1,2591.0,15.9367989]
[1739377719369,8.41e-06,2591.1,2591.0,11.84791587]
[1739377720074,0.6072,2592.2,2591.0,11.07597587]
[1739377720370,0.6072,2592.2,2592.1,0.77161]
[1739377720576,20.222,2593.2,2592.1,0.77161]
[1739377720577,0.77142,2592.8,2592.2,1.92895]
[1739377720877,0.77143,2592.7,2592.6,0.77144]
[1739377721172,0.77141,2592.8,2592.7,0.77142]
[1739377721368,0.77144,2592.7,2592.6,0.77145]
[1739377721575,0.77149,2592.5,2592.4,0.00579173]
[1739377722573,0.77149,2592.5,2592.4,0.77731173]
[1739377722773,3.2078,2592.7,2592.4,0.00579173]
[1739377722972,1.35069,2592.9,2592.8,0.7714]
[1739377723170,1.35067,2592.9,2592.8,0.7714]
[1739377723772,0.77149,2592.5,2592.4,0.00579173]
[1739377724375,1.35099,2592.5,2592.4,0.00579173]
[1739377724783,0.77162,2592.1,2592.0,0.77163]
[1739377725478,3.2078,2592.2,2591.5,5.13727]
[1739377725682,0.5732,2592.1,2591.8,0.77168]
[1739377725875,0.77167,2591.9,2591.8,0.77168]
[1739377726274,0.7717,2591.8,2591.6,0.00579173]
[1739377726572,0.77173,2591.7,2591.6,0.77755173]
[1739377726789,0.77171,2591.8,2591.7,0.77173]
[1739377727099,3.2078,2591.9,2591.6,0.00579173]
[1739377727288,0.77173,2591.7,2591.6,0.00579173]
[1739377727487,0.77172,2591.8,2591.7,0.77173]
[1739377727694,0.7717,2591.8,2591.6,0.77754173]
[1739377727893,0.5557,2591.7,2591.6,0.77754173]
[1739377728189,0.5557,2591.7,2591.0,0.77192]
[1739377728486,0.5557,2591.7,2590.9,0.77197]
[1739377728487,0.77189,2591.2,2590.9,0.77197]
[1739377728894,3.2078,2591.3,2590.8,3.2078]
[1739377729085,1.32763,2591.1,2590.8,3.2078]
[1739377729284,1.32763,2591.1,2590.9,0.77197]
[1739377729490,1.32763,2591.1,2590.8,3.2078]
[1739377729690,1.32763,2591.1,2590.9,0.77196]
[1739377729891,0.5557,2591.1,2590.8,3.2078]
[1739377730187,0.5557,2591.1,2590.8,3.9798]
[1739377730387,1.32762,2591.1,2590.9,0.77196]
[1739377731092,0.5557,2591.1,2590.8,3.2078]
[1739377731595,0.5557,2591.1,2590.9,0.77195]
[1739377732391,0.5557,2591.1,2590.8,3.97978]
[1739377732693,0.5557,2591.1,2591.0,0.77194]
[1739377733400,0.5557,2591.1,2590.7,0.00579173]
[1739377733596,0.772,2590.8,2590.7,0.00579173]
[1739377733788,5.1208,2591.0,2590.7,0.00579173]
[1739377734301,5.1208,2591.0,2590.9,0.77197]
[1739377734483,5.1208,2591.0,2590.7,0.00579173]
[1739377734484,2.68494,2591.0,2590.7,0.00579173]
[1739377734688,1.913,2591.0,2590.8,0.77198]
[1739377734885,1.913,2591.0,2590.9,0.77197]
[1739377735089,0.5557,2591.1,2591.0,0.77194]
[1739377735294,0.5617,2591.3,2591.2,0.77188]
[1739377735494,4.08888303,2591.8,2591.2,0.77188]
[1739377735495,0.5669,2591.7,2591.2,0.77188]
[1739377735697,0.5669,2591.7,2591.6,0.77176]
[1739377736094,0.5643,2592.0,2591.9,0.77167]
[1739377736493,0.00579173,2592.1,2591.8,3.2078]
[1739377736689,0.00579173,2592.1,2592.0,0.77164]
[1739377737294,3.21359173,2592.1,2591.3,6.00088303]
[1739377737600,3.2078,2591.8,2591.7,0.77173]
[1739377740203,0.00579173,2592.1,2592.0,0.77164]
[1739377740400,0.00579173,2592.1,2592.0,3.97944]
[1739377742312,1.73e-06,2592.1,2592.0,3.97944]
[1739377742804,1.73e-06,2592.1,2592.0,5.08794]
[1739377743407,1.73e-06,2592.1,2592.0,11.08794]
[1739377743708,1.73e-06,2592.1,2592.0,16.03880292]
[1739377744208,3.29488551,2593.4,2592.0,19.35604595]
[1739377744409,3.29488551,2593.4,2593.3,0.77125]
[1739377744708,1.1953,2593.7,2593.0,6.01719303]
[1739377744709,4.4031,2593.7,2593.0,7.29668303]
[1739377744903,3.2078,2593.4,2592.7,4.08888303]
[1739377745098,3.97903,2593.4,2592.7,4.08888303]
[1739377745404,0.00579173,2593.3,2593.2,0.77128]
[1739377745611,0.77706173,2593.3,2593.0,0.77133]
[1739377745797,0.00579173,2593.3,2592.8,0.00579173]
[1739377746000,0.77706173,2593.3,2593.0,0.77132]
[1739377746209,0.00579173,2593.3,2593.2,0.77128]
[1739377747905,0.00579173,2593.3,2592.8,0.00579173]
[1739377748403,0.00579173,2593.3,2593.2,0.77128]
[1739377749008,0.00579173,2593.3,2592.8,0.00579173]
[1739377749506,3.21359173,2593.3,2593.2,0.77128]
[1739377749712,0.00579173,2593.3,2593.2,0.77128]
[1739377749907,0.00579173,2593.3,2592.8,0.00579173]
[1739377750115,0.00579173,2593.3,2593.1,0.7713]
[1739377750309,0.00579173,2593.3,2593.2,0.77128]
[1739377752118,1.185,2594.7,2594.0,0.77104]
[1739377752119,3.2078,2594.1,2594.0,0.77104]
[1739377752620,3.2078,2594.4,2593.8,7.29668303]
[1739377752810,4.4177,2594.7,2593.8,7.29668303]
[1739377753016,0.77087,2594.6,2594.4,0.77091]
[1739377753219,5.18856,2594.7,2594.5,0.7709]
[1739377753411,4.4177,2594.7,2594.0,1.93337173]
[1739377753716,5.18854,2594.7,2594.5,0.77087]
[1739377753922,5.18854,2594.7,2594.1,4.08888303]
[1739377753923,4.4177,2594.7,2594.1,4.08888303]
[1739377754108,5.18855,2594.7,2594.5,0.77089]
[1739377754617,4.4177,2594.7,2594.0,0.00579173]
[1739377754818,3.2078,2594.4,2594.0,0.00579173]
[1739377755019,3.97881,2594.1,2594.0,0.00579173]
[1739377756215,3.2078,2594.1,2594.0,0.00579173]
[1739377756413,3.97881,2594.1,2594.0,0.00579173]
[1739377756916,3.2078,2594.1,2594.0,0.77683173]
[1739377757323,0.77099,2594.2,2594.0,0.77683173]
[1739377757527,3.97881,2594.1,2594.0,0.00579173]
[1739377759018,3.97881,2594.1,2593.2,5.99888303]
[1739377759224,3.2078,2593.7,2593.1,1.136]
[1739377759426,0.77121,2593.5,2593.3,0.77125]
[1739377759920,3.2078,2593.7,2592.8,5.13627]
[1739377760224,0.77700173,2593.5,2593.3,0.77124]
[1739377760436,0.00579173,2593.5,2593.4,0.77122]
[1739377761624,0.00579173,2593.5,2593.0,0.00579173]
[1739377761625,0.77698173,2593.5,2593.0,0.00579173]
[1739377762124,0.77122,2593.4,2593.3,0.77123]
[1739377762324,0.77122,2593.4,2593.0,0.00579173]
[1739377762522,0.00579173,2593.5,2593.2,0.77127]
[1739377762724,0.77700173,2593.5,2593.0,0.00579173]
[1739377763120,0.77700173,2593.5,2593.4,0.77122]
[1739377763326,0.00579173,2593.5,2593.4,0.77122]
[1739377764429,0.00579173,2593.5,2593.4,3.97902]
[1739377765122,1.73e-06,2593.5,2593.4,3.97902]
[1739377765528,1.73e-06,2593.5,2593.4,4.56312]
[1739377767127,1.73e-06,2593.5,2593.4,10.56312]
[1739377767326,3.2078,2594.3,2594.2,0.77098]
[1739377768328,3.2078,2594.7,2594.1,5.13529]
[1739377768521,3.2078,2594.7,2594.6,0.77087]
[1739377771125,0.5726,2594.8,2594.7,0.77084]
[1739377771429,0.5974,2595.1,2595.0,0.77075]
[1739377771632,3.97845,2595.4,2595.2,0.77066]
[1739377771824,3.97845,2595.4,2594.9,4.08888303]
[1739377772026,3.97845,2595.4,2595.3,0.77066]
[1739377772535,0.77067,2595.3,2595.2,0.77066]
[1739377773030,3.2078,2595.3,2594.7,3.8118]
[1739377773225,3.2078,2595.3,2594.8,0.77078]
[1739377773226,0.77077,2595.0,2594.8,0.77078]
[1739377773424,3.2078,2595.3,2594.9,0.77078]
[1739377773825,3.2078,2595.0,2594.6,4.08888303]
[1739377774130,3.2078,2595.0,2594.6,0.77085]
[1739377774327,0.77082,2594.8,2594.7,0.77083]
[1739377774531,1.3813,2594.9,2594.7,0.77082]
[1739377774832,1.3813,2594.9,2594.4,0.00579173]
[1739377775034,1.3813,2594.9,2594.7,0.77082]
[1739377775331,0.77081,2594.8,2594.7,0.77082]
[1739377775527,0.6105,2594.9,2594.4,0.00579173]
[1739377775730,0.7709,2594.5,2594.4,0.00579173]
[1739377776030,0.77086,2594.7,2594.5,0.77087]
[1739377776231,0.77086,2594.7,2594.4,0.00579173]
[1739377776527,0.5622,2594.8,2594.7,0.77084]
[1739377777032,3.2078,2594.9,2594.8,0.77081]
[1739377777225,3.0328,2595.3,2594.6,4.08888303]
[1739377777427,0.77069,2595.2,2595.1,0.7707]
[1739377777626,3.0328,2595.3,2594.7,1.92709]
[1739377777823,0.77071,2595.2,2595.1,0.77072]
[1739377778223,0.77075,2595.0,2594.9,0.77075]
[1739377778834,3.2078,2595.1,2594.6,7.29668303]
[1739377779028,3.97854,2595.1,2595.0,0.77075]
[1739377779236,3.2078,2595.1,2594.6,7.29668303]
[1739377779429,3.2078,2595.1,2594.8,0.77078]
[1739377779635,0.77076,2595.0,2594.9,0.76574441]
[1739377780138,0.77076,2595.0,2594.5,1.92717]
[1739377780139,3.2078,2595.1,2594.4,0.00579173]
[1739377780336,0.77084,2594.7,2594.6,0.77084]
[1739377780633,3.2078,2595.1,2594.4,1.93308173]
[1739377780833,3.2078,2595.1,2594.4,0.00579173]
[1739377781030,0.77085,2594.7,2594.6,0.77085]
[1739377781236,0.77087,2594.6,2594.5,0.7709]
[1739377781934,0.77089,2594.6,2594.5,0.77089]
[1739377782138,0.5909,2594.7,2594.6,0.77087]
[1739377782342,3.2078,2594.8,2594.7,0.77084]
[1739377783038,3.97859,2594.9,2594.8,0.77081]
[1739377783531,0.77081,2594.8,2594.4,1.93308173]
[1739377783735,3.2078,2594.9,2594.4,1.93308173]
[1739377783938,3.2078,2594.9,2594.4,0.00579173]
[1739377784136,0.77085,2594.7,2594.6,0.77085]
[1739377784332,0.77082,2594.8,2594.7,0.77082]
[1739377784534,3.2078,2594.9,2594.4,0.00579173]
[1739377784742,0.77088,2594.6,2594.5,0.77088]
[1739377785051,5.13477,2594.9,2594.4,0.00579173]
[1739377785338,0.7709,2594.5,2594.4,0.77670173]
[1739377785843,3.2078,2594.6,2594.5,0.7709]
[1739377786033,0.77081,2594.8,2594.4,0.00579173]
[1739377786234,0.5823,2595.1,2594.4,1.93309173]
[1739377786538,0.7708,2594.9,2594.8,0.7708]
[1739377786930,3.2078,2594.9,2594.8,0.7708]
[1739377787131,0.77076,2595.0,2594.4,1.93309173]
[1739377787338,0.5823,2595.1,2594.6,1.92717]
[1739377787539,0.77079,2594.9,2594.8,0.77078]
[1739377788041,0.77082,2594.8,2594.7,0.77081]
[1739377788345,0.77084,2594.7,2594.6,0.77083]
[1739377788642,0.77076,2595.0,2594.9,0.77076]
[1739377788848,0.5823,2595.1,2594.5,1.92725]
[1739377789141,0.5823,2595.1,2594.4,2.52490173]
[1739377789342,0.77078,2595.0,2594.9,0.77076]
[1739377789739,0.5823,2595.1,2594.6,1.92717]
[1739377789937,3.2078,2594.9,2594.8,0.77081]
[1739377790449,0.77082,2594.8,2594.7,0.77081]
[1739377790746,0.77082,2594.8,2594.4,1.93310173]
[1739377790747,3.97861,2594.9,2594.8,0.77081]
[1739377791049,3.2078,2594.9,2594.8,0.77081]
[1739377793845,0.5622,2595.3,2594.7,3.2078]
[1739377794050,0.5986,2595.4,2595.0,3.2078]
[1739377794256,0.5986,2595.4,2595.3,0.77066]
[1739377794257,1.36923,2595.4,2595.3,0.77066]
[1739377794751,0.5986,2595.4,2595.3,0.77066]
[1739377795851,1.36923,2595.4,2595.3,0.77066]
[1739377796043,0.5986,2595.4,2595.3,0.77066]
[1739377796445,0.77067,2595.3,2595.2,0.77067]
[1739377797450,0.5986,2595.4,2595.3,0.77066]
[1739377798342,1.36923,2595.4,2595.3,0.77066]
[1739377798546,0.5986,2595.4,2595.3,0.77066]
[1739377799958,1.36923,2595.4,2595.3,0.77066]
[1739377800253,0.5986,2595.4,2595.3,0.77066]
[1739377800552,0.77072,2595.2,2595.1,0.7707]
[1739377800752,3.2078,2595.3,2594.8,2.48452]
[1739377800955,0.5986,2595.4,2594.9,1.92693]
[1739377801150,0.77067,2595.3,2595.2,0.77066]
[1739377801451,1.92673,2595.2,2594.7,3.2078]
[1739377801652,0.77075,2595.1,2595.0,0.77072]
[1739377801853,5.1148,2595.3,2594.7,3.2078]
[1739377802055,0.5844,2595.0,2594.9,0.77078]
[1739377802553,8.78e-06,2595.2,2595.1,0.77072]
[1739377802745,8.78e-06,2595.2,2595.1,3.97852]
[1739377803161,8.78e-06,2595.2,2595.1,11.88552]
[1739377803356,0.5844,2596.0,2595.9,0.77048]
[1739377803655,0.6095,2596.2,2595.8,3.2078]
[1739377803956,0.6095,2596.2,2595.1,1.907]
[1739377803957,3.2078,2595.9,2595.4,1.04985659]
[1739377804257,3.97829,2595.9,2595.8,0.77051]
[1739377804446,3.2078,2595.9,2595.7,0.00578024]
[1739377804648,3.2078,2595.9,2595.1,0.7707]
[1739377804649,1.92634,2595.8,2595.1,0.7707]
[1739377804861,3.2078,2595.2,2595.1,0.7707]
[1739377805059,3.2078,2595.2,2594.5,2.5002]
[1739377805568,3.2078,2595.2,2595.1,0.77072]
[1739377805950,0.5768,2595.7,2595.0,7.29668303]
[1739377806263,0.00574193,2595.4,2595.3,4.85954303]
[1739377807166,0.00574193,2595.4,2595.3,0.77066]
[1739377807759,0.00574193,2595.4,2595.3,4.85954303]
[1739377807954,1.93e-06,2595.4,2595.3,4.85954303]
[1739377808158,1.93e-06,2595.4,2595.3,14.06734303]
[1739377808358,1.93e-06,2595.4,2595.3,19.10403909]
[1739377808556,0.77035,2596.4,2595.3,19.10403909]
[1739377808557,3.2078,2596.4,2596.3,0.77036]
[1739377810358,3.2078,2596.4,2596.1,0.00578024]
[1739377810656,3.2078,2596.4,2596.3,0.77036]
[1739377812565,3.2078,2596.8,2596.7,0.77024]
[1739377813864,3.7996,2597.4,2596.8,1.92554]
[1739377814058,3.2078,2597.4,2597.3,0.77006]
[1739377815060,3.2078,2597.4,2597.2,0.77007]
[1739377815365,3.2078,2597.4,2597.3,0.77006]
[1739377817355,0.5918,2598.0,2597.3,4.08888303]
[1739377817665,4.54491,2598.2,2597.6,4.08888303]
[1739377817856,3.7751,2598.2,2598.1,0.76983]
[1739377818063,3.9776,2598.2,2598.1,0.76983]
[1739377818366,0.76985,2598.1,2597.9,0.77565024]
[1739377818757,0.76986,2598.0,2597.9,0.00578024]
[1739377818958,0.76984,2598.1,2597.9,0.77565024]
[1739377819261,3.97762,2598.2,2598.0,0.76985]
[1739377819858,3.2078,2598.2,2598.0,0.76985]
[1739377820068,0.76986,2598.0,2597.9,0.00578024]
[1739377820362,3.2078,2598.2,2597.1,2.53112]
[1739377820560,6.54698303,2598.4,2596.9,3.2078]
[1739377820561,3.2078,2597.4,2596.9,3.2078]
[1739377820767,0.77009,2597.3,2597.1,0.77011]
[1739377820964,0.5763,2597.3,2596.9,3.2078]
[1739377821160,0.77017,2597.0,2596.4,7.90248303]
[1739377821360,3.97794,2597.1,2596.4,7.90248303]
[1739377821669,0.00578024,2597.0,2596.9,0.77018]
[1739377822558,3.8021,2597.7,2596.9,7.905]
[1739377822869,3.8021,2597.7,2597.6,0.76998]
[1739377823074,3.97761,2598.2,2598.0,0.76985]
[1739377823265,3.97761,2598.2,2597.6,3.2078]
[1739377823266,3.2078,2598.2,2597.6,3.2078]
[1739377823566,3.97762,2598.2,2598.0,0.76983]
[1739377823970,3.2078,2598.2,2597.6,3.21358024]
[1739377824166,0.6073,2598.4,2597.6,3.21358024]
[1739377824167,0.6073,2598.4,2598.2,0.7698]
[1739377824360,3.7815,2599.0,2598.7,0.76964]
[1739377824571,0.5663,2598.9,2598.6,0.76966]
[1739377824769,1.33591,2598.9,2598.6,0.76966]
[1739377824971,0.76962,2598.8,2598.4,4.08888303]
[1739377825168,3.2078,2598.6,2598.3,0.76975]
[1739377825361,3.2078,2598.6,2598.1,5.99288303]
[1739377825568,0.76972,2598.5,2598.2,0.76979]
[1739377826069,3.9775,2598.6,2598.3,0.76977]
[1739377826267,3.2078,2598.6,2598.1,4.08888303]
[1739377826567,0.5663,2598.9,2598.7,0.76962]
[1739377826769,0.5663,2598.9,2598.8,0.76962]
[1739377826969,3.2078,2599.3,2598.7,13.29668303]
[1739377827270,5.11719,2599.6,2599.0,4.08888303]